bitfinex/quotes_ETHUSD_20220119
["timestamp","ask_amount","ask_price","bid_price","bid_amount"]
[1642550745348,0.0022737,3157.5,3156.9,1.583869]
[1642550745549,0.0022737,3157.5,3156.9,1.710369]
[1642550745749,0.00170527,3157.4,3157.0,0.7919564]
[1642550745951,0.00170527,3157.4,3157.1,0.1265]
[1642550746150,0.00113685,3157.3,3157.1,0.1265]
[1642550746551,0.0022737,3157.5,3157.2,0.79182]
[1642550746751,0.0022737,3157.5,3157.3,0.91832]
[1642550746996,0.00170527,3157.4,3157.3,0.4265]
[1642550747396,0.00170527,3157.4,3157.3,0.15800303]
[1642550747998,0.00170527,3157.4,3157.3,6.96300303]
[1642550748902,0.00170527,3157.4,3157.3,7.75475303]
[1642550749298,0.00170527,3157.4,3157.3,11.44484153]
[1642550749698,0.00170527,3157.4,3157.3,4.30309153]
[1642550749901,0.00170527,3157.4,3157.3,3.8165885]
[1642550750101,0.00170527,3157.4,3157.3,3.6900885]
[1642550750499,0.00170527,3157.4,3157.3,2.6900885]
[1642550750766,0.00170527,3157.4,3157.3,1.1061985]
[1642550750954,0.79370287,3157.4,3157.3,1.1061985]
[1642550751253,2.71015882,3157.4,3157.1,3.0591258]
[1642550751462,3.36155505,3157.3,3156.8,1.00170527]
[1642550751654,0.1267,3157.2,3156.8,1.00170527]
[1642550751853,0.1267,3157.2,3156.9,0.00113685]
[1642550752054,1.5843025,3157.1,3156.9,0.00113685]
[1642550752254,0.1267,3157.0,3156.9,0.00113685]
[1642550752455,0.4267,3157.0,3156.9,0.00113685]
[1642550752855,0.79216,3156.9,3156.5,0.00341054]
[1642550753656,1.5843734,3156.8,3156.5,0.00341054]
[1642550753856,4.73359619,3156.8,3156.5,0.00341054]
[1642550754058,1.21893,3156.7,3156.5,0.00341054]
[1642550754256,1.21893,3156.7,3156.2,0.00511581]
[1642550754794,0.7922156,3156.6,3156.2,0.00511581]
[1642550755798,1.5843756,3156.6,3156.2,0.00511581]
[1642550756200,0.79216,3156.6,3156.2,0.00511581]
[1642550758757,3.88799234,3156.6,3156.2,0.00511581]
[1642550758958,3.93028113,3156.6,3156.2,0.00511581]
[1642550759161,3.13648997,3156.5,3156.0,0.00625266]
[1642550759359,3.13648997,3156.5,3156.1,1.0]
[1642550759360,0.79229,3156.4,3156.1,1.0]
[1642550759559,0.1267,3156.3,3156.1,1.0]
[1642550759759,1.29267618,3156.2,3156.1,1.0]
[1642550759960,3.34192338,3156.3,3156.1,1.0]
[1642550759961,0.1267,3156.3,3156.1,1.0]
[1642550760161,0.91899,3156.4,3156.1,1.00568423]
[1642550760360,0.91899,3156.4,3156.1,0.00568423]
[1642550760560,0.79229,3156.4,3156.1,0.00568423]
[1642550760759,0.79229,3156.4,3155.5,0.00909477]
[1642550760959,0.79229,3156.4,3155.7,1.58425]
[1642550761159,0.79229,3156.4,3155.7,2.37641]
[1642550761360,0.79229,3156.4,3155.8,0.7995295]
[1642550761764,0.79229,3156.4,3155.9,0.00682108]
[1642550761996,0.79213,3156.6,3155.9,0.00682108]
[1642550762198,3.1,3156.4,3155.9,0.00682108]
[1642550762398,3.1,3156.4,3155.9,1.00682108]
[1642550762599,3.1,3156.4,3155.9,1.0]
[1642550762797,3.1,3156.4,3156.0,0.00625266]
[1642550762999,3.1,3156.4,3156.1,0.79212]
[1642550763403,3.1,3156.4,3156.2,0.00511581]
[1642550767950,0.1267,3156.3,3156.2,0.00511581]
[1642550768557,0.883,3156.3,3156.2,0.00511581]
[1642550768753,24.733,3156.3,3155.6,0.00852635]
[1642550768954,1.32600851,3156.0,3155.6,0.00852635]
[1642550769152,0.7925,3155.8,3155.6,0.00852635]
[1642550769353,1.58499,3155.8,3155.6,0.00852635]
[1642550769621,1.58499,3155.8,3155.3,0.01023162]
[1642550770218,1.58499,3155.8,3155.1,0.01136847]
[1642550770419,1.58499,3155.8,3154.9,0.01250531]
[1642550770620,1.58499,3155.8,3154.9,1.59725531]
[1642550770920,1.58499,3155.8,3155.4,2.69162875]
[1642550771320,1.58499,3155.8,3155.5,0.00909477]
[1642550772521,1.58499,3155.8,3155.2,0.01080004]
[1642550772921,1.58499,3155.8,3155.6,2.69162875]
[1642550773351,1.58499,3155.8,3155.7,0.00795793]
[1642550774051,1.58499,3155.8,3155.4,0.0096632]
[1642550774452,1.58499,3155.8,3155.7,2.69162875]
[1642550774851,1.58499,3155.8,3155.7,2.69958668]
[1642550775052,1.58499,3155.8,3155.7,0.00795793]
[1642550775551,1.58499,3155.8,3155.5,2.69162875]
[1642550775552,1.58499,3155.8,3155.6,0.00852635]
[1642550775956,0.79249,3155.8,3155.6,0.00852635]
[1642550776355,0.79249,3155.8,3155.1,0.01136847]
[1642550776753,0.79249,3155.8,3154.7,0.01364216]
[1642550776997,0.79251,3155.7,3154.7,0.01364216]
[1642550777200,0.79254,3155.5,3154.7,0.01364216]
[1642550777799,0.79254,3155.5,3154.8,2.69192337]
[1642550778199,0.79254,3155.5,3154.9,0.01250531]
[1642550778403,1.58508,3155.5,3154.9,0.01250531]
[1642550779101,0.79254,3155.5,3154.9,0.01250531]
[1642550779304,0.79254,3155.5,3155.0,2.69192337]
[1642550779503,0.79258,3155.4,3155.0,2.69192337]
[1642550779707,0.79245,3155.7,3155.1,0.01136847]
[1642550780104,0.1267,3155.8,3155.1,0.01136847]
[1642550780304,1.1664,3155.9,3155.1,2.83494279]
[1642550780506,1.1664,3155.9,3155.1,3.62732279]
[1642550780768,1.1664,3155.9,3155.2,0.01080004]
[1642550781059,0.79241,3155.8,3155.2,2.70272341]
[1642550781458,0.79241,3155.8,3155.3,0.01023162]
[1642550781658,0.91911,3155.8,3155.2,2.65215499]
[1642550781858,0.00227369,3155.7,3155.2,2.65215499]
[1642550782058,0.00227369,3155.7,3154.9,1.54844474]
[1642550782263,0.79415527,3155.6,3154.9,3.13500636]
[1642550782458,0.79415527,3155.6,3155.0,0.00170527]
[1642550782660,0.00113685,3155.5,3155.0,0.00170527]
[1642550783665,0.00113685,3155.5,3154.9,0.00227369]
[1642550784065,0.79364685,3155.5,3154.9,0.00227369]
[1642550784706,1.58618685,3155.5,3154.9,0.00227369]
[1642550785408,0.79364685,3155.5,3154.9,0.00227369]
[1642550785807,1.58516,3155.3,3154.9,0.00227369]
[1642550786007,0.79257,3155.3,3154.9,0.00227369]
[1642550786207,0.00113685,3155.5,3154.9,0.00227369]
[1642550786407,1.43572375,3155.5,3154.8,1.53883531]
[1642550786609,0.00284211,3155.4,3154.8,1.53883531]
[1642550786807,0.79257,3155.3,3154.8,1.53883531]
[1642550787007,0.79484369,3155.3,3154.8,1.53883531]
[1642550787208,0.00170527,3155.2,3154.8,1.53883531]
[1642550787415,0.00170527,3155.2,3154.9,2.9998651]
[1642550787610,4.68512,3155.8,3154.9,2.9998651]
[1642550787611,0.00113684,3155.1,3154.9,1.58466]
[1642550788010,0.00454738,3155.7,3154.9,1.58466]
[1642550788453,0.00397896,3155.6,3154.9,1.58466]
[1642550788854,0.00341054,3155.5,3155.0,0.7923604]
[1642550789055,0.00341054,3155.5,3155.0,1.5846904]
[1642550789255,0.00284211,3155.4,3155.0,1.5846904]
[1642550789456,0.00284211,3155.4,3155.0,2.5846904]
[1642550789656,0.00227369,3155.3,3155.0,2.5846904]
[1642550789859,0.00227369,3155.3,3155.0,4.1691604]
[1642550790062,0.00170527,3155.2,3155.1,4.39232]
[1642550790259,0.00170527,3155.2,3155.1,3.6]
[1642550790659,0.1267,3156.1,3155.5,0.00682106]
[1642550790857,0.1267,3156.1,3155.2,4.05]
[1642550791059,0.00454738,3156.0,3155.2,4.05]
[1642550791260,0.79696738,3156.0,3155.0,3.9998651]
[1642550791457,0.00397896,3155.9,3155.0,3.9998651]
[1642550791657,0.00397896,3155.9,3155.0,1.0]
[1642550791857,0.00341054,3155.8,3155.0,1.79238]
[1642550792302,0.00284211,3155.7,3155.0,1.79238]
[1642550792607,0.00227369,3155.6,3155.0,1.79238]
[1642550792999,0.00170527,3155.5,3155.1,0.7923582]
[1642550793200,0.00170527,3155.5,3155.1,1.5846782]
[1642550793404,0.00113684,3155.4,3155.0,1.0]
[1642550793807,0.13067896,3155.9,3155.0,1.0]
[1642550794205,0.00341054,3155.8,3155.0,1.0]
[1642550794403,0.1267,3155.7,3154.9,3.97499132]
[1642550794605,0.12954211,3155.7,3154.9,3.97499132]
[1642550794904,0.00227369,3155.6,3155.1,2.39033132]
[1642550795305,0.1267,3155.7,3155.1,2.39033132]
[1642550795306,0.00170527,3155.5,3155.1,2.39033132]
[1642550795753,0.1267,3155.9,3155.3,1.6058971]
[1642550795754,0.00113684,3155.4,3155.3,1.6058971]
[1642550797154,0.00113684,3155.4,3155.3,2.39033132]
[1642550797958,0.00113684,3155.4,3155.1,3.14797457]
[1642550798561,0.00113684,3155.4,3155.3,2.41126944]
[1642550800199,0.00113684,3155.4,3155.3,5.6423559]
[1642550800406,0.00113684,3155.4,3155.3,10.72413035]
[1642550800699,0.00113684,3155.4,3155.3,12.17913035]
[1642550801300,0.00113684,3155.4,3155.3,14.89454495]
[1642550801502,0.00113684,3155.4,3155.3,13.48327551]
[1642550802002,0.00113684,3155.4,3155.3,5.01786091]
[1642550802204,0.00113684,3155.4,3155.3,1.455]
[1642550802403,0.00113684,3155.4,3155.3,3.69141085]
[1642550802603,0.1267,3155.9,3155.4,2.4]
[1642550802804,3.1,3156.0,3155.4,2.4]
[1642550803006,0.00284212,3155.9,3155.4,2.4]
[1642550803253,0.00284212,3155.9,3155.3,3.69141085]
[1642550803457,0.1289737,3155.8,3155.3,2.69141085]
[1642550803658,0.0022737,3155.8,3155.3,2.69141085]
[1642550803857,0.12840527,3155.7,3155.3,2.69141085]
[1642550804060,0.00170527,3155.7,3155.5,1.60946212]
[1642550804259,0.12783685,3155.6,3155.5,1.60946212]
[1642550804460,0.00113685,3155.6,3155.5,1.60946212]
[1642550804661,0.12783685,3155.6,3155.5,1.60946212]
[1642550805061,0.12783685,3155.6,3155.4,2.69141085]
[1642550805263,3.1,3156.0,3155.3,5.10560403]
[1642550805264,2.72783685,3156.0,3155.3,5.10560403]
[1642550805463,0.79243,3155.8,3155.3,5.10560403]
[1642550805664,0.1267,3155.7,3155.4,0.00113685]
[1642550805863,0.79243,3155.8,3155.4,0.00113685]
[1642550806061,0.12840527,3155.9,3155.6,1.60944527]
[1642550806462,0.00113685,3155.8,3155.6,1.60944527]
[1642550806663,0.1267,3155.7,3155.6,1.60944527]
[1642550807106,0.1267,3155.7,3155.4,2.41533003]
[1642550808311,0.79358685,3155.8,3155.4,0.00113685]
[1642550809206,0.79358685,3155.8,3155.4,2.41533003]
[1642550809606,0.79253,3155.6,3155.4,2.41533003]
[1642550809807,0.79254,3155.6,3155.4,2.41533003]
[1642550810861,0.79357685,3155.8,3155.4,0.00113685]
[1642550811457,0.79357685,3155.8,3155.5,2.69141085]
[1642550811657,0.1267,3155.7,3155.5,5.10560403]
[1642550811857,0.79357685,3155.8,3155.5,5.10560403]
[1642550812357,1.58605685,3155.8,3155.6,2.41419318]
[1642550812557,0.1267,3155.7,3155.6,2.41419318]
[1642550812757,1.58605685,3155.8,3155.6,2.41419318]
[1642550813962,0.1267,3155.7,3155.6,2.41419318]
[1642550814162,1.58605685,3155.8,3155.4,2.41533003]
[1642550814163,0.00113685,3155.8,3155.4,2.41533003]
[1642550814998,0.00113685,3155.8,3155.6,5.10560403]
[1642550815199,0.1267,3155.7,3155.6,5.10560403]
[1642550815399,0.00113685,3155.8,3155.6,5.10560403]
[1642550815400,0.12783685,3155.8,3155.6,5.10560403]
[1642550815600,0.00113685,3155.8,3155.6,5.10560403]
[1642550816205,0.00113685,3155.8,3155.6,2.41419318]
[1642550819657,1.1291,3156.2,3155.6,2.41419318]
[1642550819658,1.60414515,3156.2,3156.0,4.2474463]
[1642550819860,0.47504515,3156.2,3156.0,4.2474463]
[1642550820058,0.00170527,3156.1,3156.0,4.2474463]
[1642550821263,0.12840527,3156.1,3156.0,4.2474463]
[1642550823306,0.00170527,3156.1,3156.0,4.2474463]
[1642550823506,0.00170527,3156.1,3156.0,6.98606789]
[1642550823708,0.00170527,3156.1,3156.0,5.85920702]
[1642550823910,3.10170527,3156.1,3156.0,7.34204781]
[1642550824206,0.46963093,3157.0,3156.1,5.3]
[1642550824507,0.00397896,3156.8,3156.1,5.3]
[1642550824907,3.8524,3156.9,3156.1,5.3]
[1642550824908,0.00341054,3156.7,3156.1,5.3]
[1642550825405,0.00284211,3156.6,3156.4,1.2771158]
[1642550825857,0.00227369,3156.5,3156.4,1.2771158]
[1642550826054,0.00227369,3156.5,3156.4,8.10353828]
[1642550826657,0.00227369,3156.5,3156.4,8.89555828]
[1642550826856,0.00227369,3156.5,3156.4,5.19555828]
[1642550827057,0.00227369,3156.5,3156.4,5.3271158]
[1642550827457,0.00227369,3156.5,3156.3,4.00886713]
[1642550827661,0.00227369,3156.5,3156.3,3.21678963]
[1642550827859,0.00170527,3156.4,3156.3,3.21678963]
[1642550828461,0.00170527,3156.4,3156.2,3.21678963]
[1642550828865,0.00113684,3156.3,3156.2,3.21678963]
[1642550829065,0.00113684,3156.3,3156.2,8.51678963]
[1642550829260,0.00113684,3156.3,3156.2,3.21678963]
[1642550829511,0.00113684,3156.3,3156.1,0.00511581]
[1642550830508,0.00113684,3156.3,3156.1,1.00511581]
[1642550831613,0.00113684,3156.3,3156.1,0.00511581]
[1642550834457,0.79342684,3156.3,3156.1,0.00511581]
[1642550835060,3.89342684,3156.3,3156.1,0.00511581]
[1642550836063,0.1267,3156.7,3156.1,0.00511581]
[1642550836366,0.00113685,3156.5,3156.1,0.00511581]
[1642550836562,0.1267,3156.4,3156.1,0.00511581]
[1642550836865,0.79229,3156.3,3156.1,0.00511581]
[1642550837111,0.79229,3156.3,3156.2,2.69170289]
[1642550838413,0.00113685,3156.5,3156.2,2.69170289]
[1642550839417,0.79338685,3156.5,3156.2,2.69170289]
[1642550839616,0.00113685,3156.5,3156.2,2.69170289]
[1642550840214,0.00113685,3156.5,3156.2,2.99170289]
[1642550840414,0.00113685,3156.5,3156.3,3.5927863]
[1642550840615,0.00113685,3156.5,3156.3,0.79204]
[1642550841051,0.00113685,3156.5,3156.2,2.99170289]
[1642550841255,0.00113685,3156.5,3156.4,6.32055477]
[1642550841453,0.00113685,3156.5,3156.4,5.1]
[1642550841651,0.00113685,3156.5,3156.4,7.79170289]
[1642550841856,4.5388,3157.2,3156.6,0.0022737]
[1642550842062,4.5388,3157.2,3156.5,3.05]
[1642550842256,0.00341054,3157.1,3156.4,2.99170289]
[1642550842459,0.79551054,3157.1,3156.4,2.99170289]
[1642550842658,0.00284212,3157.0,3156.4,2.99170289]
[1642550842859,0.00284212,3157.0,3156.7,1.60750123]
[1642550843058,0.00227369,3156.9,3156.7,1.60750123]
[1642550843459,0.00170527,3156.8,3156.7,1.60750123]
[1642550843660,27.1991,3157.5,3157.0,0.00021473]
[1642550844060,0.00170527,3157.1,3157.0,0.00021473]
[1642550844902,0.00170527,3157.1,3157.0,4.60021473]
[1642550845601,0.00170527,3157.1,3157.0,5.60021473]
[1642550846302,0.00170527,3157.1,3157.0,8.29191762]
[1642550847305,0.00170527,3157.1,3157.0,7.29191762]
[1642550847903,0.00170527,3157.1,3157.0,2.69191762]
[1642550851660,0.79386527,3157.1,3157.0,2.69191762]
[1642550851860,0.79386527,3157.1,3157.0,0.00021473]
[1642550852107,0.92056527,3157.1,3157.0,0.00021473]
[1642550853810,0.00170527,3157.1,3157.0,0.00021473]
[1642550856754,0.00170527,3157.1,3157.0,3.10021473]
[1642550857755,0.00170527,3157.1,3157.0,5.79191762]
[1642550857952,0.79198,3157.5,3157.1,2.45341054]
[1642550858153,0.79198,3157.5,3157.1,0.00341054]
[1642550858355,0.00170527,3157.4,3157.1,0.00341054]
[1642550858855,0.00113685,3157.3,3157.1,0.00341054]
[1642550859055,0.00113685,3157.3,3157.1,2.81289033]
[1642550859703,0.00113685,3157.3,3157.1,5.50459322]
[1642550859904,0.00113685,3157.3,3157.1,2.69511343]
[1642550860604,0.00113685,3157.3,3157.2,4.29763047]
[1642550862407,0.00113685,3157.3,3157.2,2.69170289]
[1642550867211,0.00113685,3157.3,3157.2,5.95592758]
[1642550867411,0.00113685,3157.3,3157.2,1.60592758]
[1642550867810,0.00113685,3157.3,3157.2,4.29763047]
[1642550868415,0.00113685,3157.3,3157.1,5.51811984]
[1642550869215,0.00113685,3157.3,3157.2,2.69170289]
[1642550871057,0.00113685,3157.3,3157.2,4.29763047]
[1642550873662,0.00113685,3157.3,3157.2,2.69170289]
[1642550875107,0.00113685,3157.3,3157.2,5.48337445]
[1642550875306,0.00113685,3157.3,3157.2,6.60837445]
[1642550875505,0.00113685,3157.3,3157.2,4.81670289]
[1642550876506,4.2863,3157.9,3157.2,4.81670289]
[1642550876507,4.2863,3157.9,3157.5,0.0022737]
[1642550876707,5.07823,3157.9,3157.5,0.0022737]
[1642550876907,0.00284212,3157.8,3157.5,0.0022737]
[1642550877307,0.00227369,3157.7,3157.5,0.0022737]
[1642550877708,0.00170527,3157.6,3157.5,0.0022737]
[1642550880962,0.00170527,3157.6,3157.5,1.10330036]
[1642550882401,0.00170527,3157.6,3157.5,3.79500325]
[1642550883205,0.00170527,3157.6,3157.5,1.10330036]
[1642550883811,0.00170527,3157.6,3157.5,3.79500325]
[1642550884606,0.00170527,3157.6,3157.5,6.20574683]
[1642550885509,0.00170527,3157.6,3157.5,9.07487889]
[1642550885752,0.00170527,3157.6,3157.5,6.20574683]
[1642550887357,0.00170527,3157.6,3157.5,3.79500325]
[1642550889261,0.00170527,3157.6,3157.5,6.20796139]
[1642550890710,0.00170527,3157.6,3157.5,9.05261189]
[1642550890911,0.00170527,3157.6,3157.5,9.11034207]
[1642550891310,0.00170527,3157.6,3157.5,7.20796139]
[1642550891514,0.1265,3158.1,3157.6,5.30341054]
[1642550891709,0.1265,3158.1,3157.7,1.5832767]
[1642550891910,0.00227369,3158.0,3157.7,2.8832767]
[1642550892112,0.00227369,3158.0,3157.7,4.9585738]
[1642550892309,0.00170527,3157.9,3157.7,4.9585738]
[1642550892510,0.00170527,3157.9,3157.8,7.79794859]
[1642550892711,0.1265,3158.1,3157.8,5.72151875]
[1642550893111,0.00227369,3158.0,3157.8,8.41322164]
[1642550893359,0.00227369,3158.0,3157.9,7.06243983]
[1642550893558,0.1265,3158.1,3157.9,7.06243983]
[1642550893762,0.00227369,3158.0,3157.9,3.20403133]
[1642550893959,0.00227369,3158.0,3157.9,5.89573422]
[1642550894263,0.00227369,3158.0,3157.9,5.10414272]
[1642550895458,0.00227369,3158.0,3157.9,3.69170289]
[1642550895961,0.00227369,3158.0,3157.9,6.10414272]
[1642550898809,0.00227369,3158.0,3157.9,3.69170289]
[1642550899207,0.00227369,3158.0,3157.9,6.64170289]
[1642550899417,0.00227369,3158.0,3157.9,7.94170289]
[1642550899609,0.00227369,3158.0,3157.9,7.97666595]
[1642550899809,0.00227369,3158.0,3157.9,8.43166595]
[1642550900211,0.1266,3159.1,3158.1,0.01118252]
[1642550900411,4.33602347,3159.7,3158.1,0.01118252]
[1642550900412,0.1265,3159.3,3158.3,1.5]
[1642550900612,0.00511581,3158.9,3158.3,3.0827]
[1642550901053,0.00454739,3158.8,3158.3,3.0827]
[1642550901255,0.00454739,3158.8,3158.3,4.70501401]
[1642550901453,0.00397897,3158.7,3158.3,4.70501401]
[1642550901655,0.00397897,3158.7,3158.6,7.28344414]
[1642550901854,0.1265,3159.3,3158.6,7.28344414]
[1642550902058,0.1265,3159.5,3159.2,1.2913659]
[1642550902253,0.1265,3159.5,3158.6,7.28344414]
[1642550902455,0.1265,3159.5,3158.8,1.0]
[1642550903053,0.79143,3159.4,3158.8,1.0]
[1642550903254,3.47275693,3159.3,3158.8,1.0]
[1642550903458,0.13388951,3159.3,3159.1,1.0]
[1642550904357,0.13388951,3159.3,3159.2,2.69170289]
[1642550905507,0.13388951,3159.3,3158.5,2.69170289]
[1642550905708,0.79157,3159.1,3158.5,2.69170289]
[1642550905910,0.91807,3159.1,3158.5,2.69170289]
[1642550906109,0.00568424,3159.0,3158.5,2.69170289]
[1642550906511,0.00511581,3158.9,3158.5,2.69170289]
[1642550906910,0.79613739,3158.8,3158.5,2.69170289]
[1642550907310,0.00397897,3158.7,3158.5,2.69170289]
[1642550907712,0.00341054,3158.6,3158.5,2.69170289]
[1642550914609,0.00341054,3158.6,3158.5,4.29569472]
[1642550915209,0.00341054,3158.6,3158.5,2.69170289]
[1642550916754,0.00341054,3158.6,3158.5,4.29569472]
[1642550917358,0.00341054,3158.6,3158.5,2.69170289]
[1642550920603,0.00341054,3158.6,3158.5,4.29701044]
[1642550920805,0.00341054,3158.6,3158.5,5.82118295]
[1642550921203,0.00341054,3158.6,3158.5,4.2158754]
[1642550921405,0.79159,3158.8,3158.6,0.00682108]
[1642550922004,0.91804,3159.1,3158.6,0.00682108]
[1642550922207,0.1265,3159.1,3158.6,0.00682108]
[1642550922403,0.00170527,3158.9,3158.6,0.00682108]
[1642550922805,0.00113685,3158.8,3158.6,0.00682108]
[1642550923259,0.0022737,3159.0,3158.8,1.60542271]
[1642550923865,0.0022737,3159.0,3158.7,3.69170289]
[1642550924463,0.0022737,3159.0,3158.8,4.29737301]
[1642550925268,0.0022737,3159.0,3158.8,2.69170289]
[1642550925468,1.5854337,3159.0,3158.8,2.69170289]
[1642550926466,1.5854337,3159.0,3158.9,1.0]
[1642550927509,1.5854337,3159.0,3158.9,3.69170289]
[1642550928510,1.5854337,3159.0,3158.9,5.29737301]
[1642550929110,1.5854337,3159.0,3158.9,3.69170289]
[1642550929712,0.0022737,3159.0,3158.9,3.69170289]
[1642550936706,0.0022737,3159.0,3158.9,6.09947371]
[1642550937509,0.0022737,3159.0,3158.9,3.40777082]
[1642550938359,0.0022737,3159.0,3158.9,2.40777082]
[1642550938564,0.0022737,3159.0,3158.9,2.69170289]
[1642550939563,0.0022737,3159.0,3158.9,1.60832047]
[1642550939763,0.1287737,3159.0,3158.9,1.60832047]
[1642550940168,3.16294449,3159.0,3158.9,1.60832047]
[1642550940565,4.7057168,3159.0,3158.7,1.60879441]
[1642550940766,0.1265,3158.9,3158.7,1.60879441]
[1642550940964,0.79174,3158.8,3158.7,1.60879441]
[1642550941168,0.79287685,3158.8,3158.7,1.60879441]
[1642550941366,0.30113685,3158.8,3158.6,0.00682108]
[1642550941564,0.00113685,3158.8,3158.6,0.00682108]
[1642550942011,0.79276685,3158.8,3158.6,0.00682108]
[1642550943205,0.91936685,3158.8,3158.6,0.00682108]
[1642550944609,0.79173,3158.7,3158.6,0.00682108]
[1642550945410,4.9,3158.6,3158.5,2.40777082]
[1642550945610,5.0265,3158.6,3158.5,2.40777082]
[1642550946060,4.24187,3158.5,3158.2,3.21658644]
[1642550946260,4.24187,3158.5,3158.3,2.41458664]
[1642550946261,4.4765,3158.4,3158.3,2.41458664]
[1642550946465,5.3,3158.3,3158.0,3.21658644]
[1642550946667,5.3,3158.3,3157.6,3.93837875]
[1642550946668,7.0103922,3158.2,3157.6,3.93837875]
[1642550946863,6.5184422,3158.2,3158.1,0.00113684]
[1642550947064,0.79207,3157.9,3156.7,1.0]
[1642550947266,1.93847,3157.9,3157.7,0.0022737]
[1642550947464,3.14238013,3157.8,3157.7,0.0022737]
[1642550947663,4.0765,3157.7,3157.1,4.0234533]
[1642550947863,4.0765,3157.7,3157.2,0.00284211]
[1642550947864,0.91853,3157.7,3157.2,0.00284211]
[1642550948065,0.3,3157.5,3157.2,0.00284211]
[1642550948263,0.4265,3157.5,3157.2,0.00284211]
[1642550948666,0.79208,3157.4,3157.2,0.00284211]
[1642550948866,0.79208,3157.4,3156.7,1.24789923]
[1642550949071,0.79208,3157.4,3157.1,0.00341054]
[1642550949072,1.14228,3157.4,3157.1,0.00341054]
[1642550949268,2.47051281,3157.5,3156.8,0.00511581]
[1642550949910,2.34401281,3157.5,3156.8,0.00511581]
[1642550950410,0.79208,3157.4,3156.8,0.00511581]
[1642550951012,0.79208,3157.4,3157.1,1.41862936]
[1642550951213,1.09208,3157.4,3157.1,1.41862936]
[1642550953958,0.79208,3157.4,3157.1,1.41862936]
[1642550954757,0.79208,3157.4,3157.1,3.82556312]
[1642550955559,0.79208,3157.4,3157.3,2.40693376]
[1642550955959,0.79208,3157.4,3157.3,2.40920745]
[1642550956159,0.79208,3157.4,3157.3,0.00227369]
[1642550956359,1.09208,3157.4,3157.3,0.00227369]
[1642550957019,0.79208,3157.4,3157.3,0.00227369]
[1642550958213,0.79208,3157.4,3157.3,2.40920745]
[1642550959822,1.52175944,3157.8,3157.3,2.40920745]
[1642550959823,0.79183,3157.7,3157.3,2.40920745]
[1642550960019,3.469,3157.9,3157.3,2.40920745]
[1642550960219,3.469,3157.9,3157.4,0.00170527]
[1642550961259,4.26077,3157.9,3157.4,0.00170527]
[1642550961658,4.26077,3157.9,3157.5,2.40485354]
[1642550961859,0.79177,3157.9,3157.5,2.40485354]
[1642550963059,1.09177,3157.9,3157.5,2.40485354]
[1642550963463,1.09177,3157.9,3157.6,2.40485354]
[1642550963663,4.21282668,3157.9,3157.6,2.40485354]
[1642550964063,0.79196,3157.8,3157.6,2.40485354]
[1642550964263,2.2765,3157.7,3157.4,0.00170527]
[1642550964509,2.8027689,3157.7,3157.4,0.00170527]
[1642550965604,2.8027689,3157.7,3157.4,2.69202047]
[1642550965803,0.79209,3157.6,3157.4,2.69202047]
[1642550966005,0.79208,3157.4,3157.1,2.40499146]
[1642550966205,1.09208,3157.4,3157.1,2.40499146]
[1642550966405,1.09208,3157.4,3157.2,2.40669673]
[1642550966703,1.09208,3157.4,3157.3,0.00113685]
[1642550967306,1.71068,3157.7,3157.5,1.62885853]
[1642550967504,2.8,3157.5,3157.3,0.00113685]
[1642550967704,3.59207,3157.5,3157.3,0.00113685]
[1642550967904,0.79207,3157.5,3157.3,0.00113685]
[1642550968102,1.58414,3157.5,3157.3,0.00113685]
[1642550968363,0.79207,3157.5,3157.3,0.00113685]
[1642550970263,0.3,3157.4,3157.3,0.00113685]
[1642550971464,1.2629,3157.4,3157.0,0.00284212]
[1642550971664,0.79208,3157.3,3157.0,0.00284212]
[1642550971865,0.1265,3157.2,3157.0,2.40783358]
[1642550972107,2.37651,3157.2,3157.0,2.40783358]
[1642550972305,2.67651,3157.2,3157.1,0.0022737]
[1642550972511,2.67651,3157.2,3156.8,3.21124515]
[1642550972704,1.71114,3157.1,3156.8,3.21124515]
[1642550972905,1.71114,3157.1,3156.9,0.00113685]
[1642550973106,0.3,3157.0,3156.9,0.00113685]
[1642550973308,0.4798,3157.0,3156.9,0.00113685]
[1642550973608,0.79222,3156.9,3156.6,0.00284212]
[1642550973808,0.3,3156.7,3156.6,0.00284212]
[1642550974010,1.0413,3156.7,3156.6,0.00284212]
[1642550974411,6.6692343,3156.7,3156.5,0.00341054]
[1642550974612,5.27585,3156.7,3156.5,0.00341054]
[1642550974810,5.4267,3156.6,3156.5,0.00341054]
[1642550975211,0.79238,3156.4,3155.9,4.01405644]
[1642550975412,1.71145,3156.3,3155.9,4.01405644]
[1642550975613,1.71145,3156.3,3156.0,0.00284212]
[1642550975862,1.99215,3156.3,3156.0,0.00284212]
[1642550976063,0.3,3156.2,3156.0,0.00284212]
[1642550976464,0.1267,3156.1,3156.0,0.00284212]
[1642550976665,0.9191,3156.1,3155.7,0.00454739]
[1642550976865,0.9191,3156.1,3155.5,0.00568423]
[1642550977166,0.3,3156.0,3155.4,0.00625266]
[1642550977367,0.1267,3155.9,3155.4,0.00625266]
[1642550977569,0.91911,3155.9,3155.4,0.00625266]
[1642550977765,0.91911,3155.9,3155.3,0.00682108]
[1642550977766,0.79239,3155.8,3155.3,0.00682108]
[1642550977966,1.09239,3155.8,3155.3,0.00682108]
[1642550978366,1.09239,3155.8,3155.3,1.56695829]
[1642550978766,1.88484,3155.8,3155.4,0.00625266]
[1642550978967,1.58483,3155.7,3155.4,0.00625266]
[1642550979635,0.1267,3156.1,3155.8,0.27729999]
[1642550980032,0.1267,3156.1,3155.9,0.00341054]
[1642550980430,0.91903,3156.1,3155.9,0.00341054]
[1642550981331,0.79233,3156.1,3155.9,0.00341054]
[1642550981531,0.28384203,3156.2,3156.0,1.28329213]
[1642550981731,0.28384203,3156.2,3155.9,0.00341054]
[1642550981932,0.28384203,3156.2,3156.1,0.00227369]
[1642550982131,0.28384203,3156.2,3156.0,2.40182884]
[1642550982532,0.28384203,3156.2,3156.1,0.00227369]
[1642550982734,0.28384203,3156.2,3156.1,2.40410253]
[1642550982932,2.41640554,3156.6,3156.1,3.75698242]
[1642550983258,0.1267,3156.6,3156.2,0.00170527]
[1642550983758,0.1267,3156.6,3156.4,1.33088514]
[1642550983959,1.58443,3156.5,3156.4,1.33088514]
[1642550984358,1.58443,3156.5,3156.2,1.60333862]
[1642550984758,1.58443,3156.5,3156.3,0.00113685]
[1642550985564,3.09089437,3156.4,3156.3,0.00113685]
[1642550985762,3.09089437,3156.4,3156.3,0.00490497]
[1642550985763,4.20489437,3156.4,3156.3,0.00490497]
[1642550985962,1.114,3156.4,3156.3,0.00490497]
[1642550986764,9.60344,3156.5,3156.3,2.69656961]